fUSD/lending_fUSD_20251221
["ID","MTS","AMOUNT","RATE_DAILY","PERIOD"]
[399332460,1766310653084,-1470.84,0.00016757,2]
[399332461,1766310653093,-603.0,0.00016766,2]
[399332462,1766310653103,-150.0,0.00016769,2]
[399332463,1766310653113,-150.0,0.00016774,2]
[399332464,1766310653122,-150.0,0.00016784,2]
[399332465,1766310653131,-150.0,0.00016792,2]
[399332466,1766310653142,-150.0,0.00016806,2]
[399332467,1766310653151,-150.0,0.00016816,2]
[399332468,1766310653161,-150.0,0.00016825,2]
[399332469,1766310653171,-150.0,0.00016825,2]
[399332470,1766310653181,-8979.5,0.00016833,2]
[399332471,1766310653191,-232.65849116,0.00016839,2]
[399332472,1766310653201,-617.40005154,0.00016839,2]
[399332473,1766310653211,-7000.0,0.0001684,2]
[399332474,1766310653221,-150.0,0.00016841,2]
[399332475,1766310653231,-150.0,0.00016842,2]
[399332476,1766310653241,-150.0,0.00016845,2]
[399332477,1766310653251,-150.0,0.00016865,2]
[399332478,1766310653261,-150.0,0.00016878,2]
[399332479,1766310653271,-150.0,0.00016889,2]
[399332480,1766310653280,-603.0,0.00016897,2]
[399332481,1766310653289,-526.87,0.000169,2]
[399332482,1766310653299,-19860.72422432,0.000169,2]
[399332483,1766310653309,-1172.42466185,0.000169,2]
[399332484,1766310653319,-788.26081965,0.000169,2]
[399332485,1766310653328,-686.1767961,0.000169,2]
[399332486,1766310653338,-10955.28690622,0.000169,2]
[399332487,1766310653348,-1224.28442056,0.000169,2]
[399332488,1766310653358,-150.0,0.00016901,2]
[399332489,1766310653367,-150.0,0.00016905,2]
[399332490,1766310653376,-150.0,0.00016905,2]
[399332491,1766310653386,-150.0,0.00016914,2]
[399332492,1766310653395,-150.0,0.00016916,2]
[399332493,1766310653405,-150.0,0.00016938,2]
[399332494,1766310653415,-603.0,0.00016942,2]
[399332495,1766310653424,-150.0,0.00016946,2]
[399332496,1766310653435,-150.0,0.0001695,2]
[399332497,1766310653444,-862.0,0.00016965,2]
[399332498,1766310653453,-5000.0,0.00016986,4]
[399332499,1766310653462,-10015.1343955,0.00016986,2]
[399332500,1766310653472,-21156.91487465,0.00016986,4]
[399332501,1766310653481,-155.64705311,0.00016986,2]
[399332502,1766310653491,-160.33063992,0.00016986,2]
[399332503,1766310653500,-152.0542516,0.00016986,2]
[399332504,1766310653510,-164.52110484,0.00016986,2]
[399332505,1766310653520,-156.76422926,0.00016986,2]
[399332506,1766310653530,-152.11986511,0.00016986,2]
[399332507,1766310653540,-150.82546103,0.00016986,2]
[399332508,1766310653550,-157.75435091,0.00016986,2]
[399332509,1766310653560,-151.72084113,0.00016986,2]
[399332510,1766310653570,-151.68546766,0.00016986,2]
[399332511,1766310653580,-152.94375339,0.00016986,2]
[399332512,1766310653590,-162.0002847,0.00016986,2]
[399332513,1766310653599,-152.70737667,0.00016986,2]
[399332514,1766310653610,-52741.43,0.00016986,2]
[399332515,1766310653620,-641.66939908,0.0001699,2]
[399332516,1766310653630,-814733.3712255,0.00017,2]
[399332517,1766310653645,-1495.58388854,0.00017,2]
[399332518,1766310653731,-3481.16016373,0.00017,2]
[399332519,1766310653743,-571007.88047063,0.00017,2]
[399332520,1766310653755,-1189079.19633097,0.00017,2]
[399332521,1766310653898,-219.31822323,0.00015794,2]
[399332522,1766310653908,-2930.20177677,0.00017,2]
[399332523,1766310653919,-1342.12278365,0.00017,2]
[399332526,1766310696440,1114.836,0.00011919,2]
[399332585,1766311296405,891.869,0.00011919,2]
[399332603,1766311494708,320.49,4.3e-06,120]
[399332618,1766311633099,-280.23608459,0.00012002,2]
[399332665,1766311831632,-22.20488941,0.00012002,2]
[399332666,1766311831642,-150.0,0.00012062,2]
[399332667,1766311831652,-290.71126984,0.00012062,2]
[399332668,1766311831911,-462.7308392,0.00012062,2]
[399332669,1766311831922,-461.30625011,0.00012062,2]
[399332682,1766311833455,-447.98248005,0.00012062,2]
[399332683,1766311833465,-108848.82681658,0.00012063,2]
[399332684,1766311833479,-101539.22850084,0.00012063,2]
[399332685,1766311833492,-698.15516949,0.00012063,2]
[399332690,1766311837733,-363.07334044,0.00012062,2]
[399332691,1766311837744,-136.92665956,0.00012062,2]
[399332692,1766311837754,-500.0,0.00012062,2]
[399332693,1766311837764,-500.0,0.00012062,2]
[399332694,1766311837774,-403.96283141,0.00012062,2]
[399332695,1766311837783,-270.27050903,0.00012062,2]
[399332696,1766311837829,-229.72949097,0.00012062,2]
[399332697,1766311837839,-36.86809458,0.00012062,2]
[399332698,1766311837914,-171.54419904,0.00012055,2]
[399332699,1766311837923,-463.13190542,0.00012062,2]
[399332700,1766311837934,-500.0,0.00012062,2]
[399332701,1766311837948,-435.28904391,0.00012062,2]
[399332702,1766311837958,-500.0,0.00012062,2]
[399332703,1766311837967,-500.0,0.00012062,2]
[399332704,1766311837977,-500.0,0.00012062,2]
[399332705,1766311837986,-164.28455289,0.00012062,2]
[399332706,1766311837998,-78.84206864,0.00012062,2]
[399332709,1766311838007,-500.0,0.00012062,2]
[399332710,1766311838528,-1686.62151434,0.00012063,2]
[399332717,1766311839926,-252.89000024,0.00012062,2]
[399332718,1766311839938,-247.10999976,0.00012062,2]
[399332719,1766311839947,-197.61500024,0.00012062,2]
[399332720,1766311839959,-302.38499976,0.00012062,2]
[399332721,1766311839968,-173.32268957,0.00012062,2]
[399332723,1766311841015,-326.67731043,0.00012062,2]
[399332724,1766311841046,-36.17096991,0.00012063,2]
[399332730,1766311842744,-3439.16975584,0.00012063,2]
[399332731,1766311842756,-461.70862096,0.00012063,2]
[399332732,1766311842797,-783290.11865204,0.00012063,2]
[399332733,1766311842807,-200.0,0.00012155,2]
[399332734,1766311842816,-200.0,0.00012155,2]
[399332735,1766311842826,-500.0,0.00012155,2]
[399332736,1766311842835,-1000.0,0.00012162,2]
[399332737,1766311842845,-150.0,0.00012162,2]
[399332738,1766311842854,-455.55,0.00012162,2]
[399332739,1766311842863,-1000.0,0.00012346,2]
[399332740,1766311842873,-455.55,0.00012436,2]
[399332741,1766311842883,-455.55,0.0001271,2]
[399332742,1766311842892,-455.55,0.00012984,2]
[399332743,1766311842902,-255.0,0.00013147,2]
[399332744,1766311842915,-408.0,0.00013233,2]
[399332745,1766311842924,-455.57,0.00013258,2]
[399332746,1766311842933,-1680.0,0.00013268,2]
[399332747,1766311842942,-500.0,0.00013273,2]
[399332748,1766311842952,-500.0,0.00013273,2]
[399332749,1766311842961,-500.0,0.00013273,2]
[399332750,1766311842970,-500.0,0.00013273,2]
[399332751,1766311842980,-315.46585289,0.00013273,2]
[399332752,1766311842989,-804.30260779,0.0001328,2]
[399332753,1766311842999,-231.09751066,0.00013376,2]
[399332754,1766311843009,-500.0,0.00013698,2]
[399332755,1766311843019,-500.0,0.00013698,2]
[399332756,1766311843028,-500.0,0.00013698,2]
[399332758,1766311843037,-500.0,0.00013698,2]
[399332759,1766311843047,-500.0,0.00013698,2]
[399332760,1766311843056,-500.0,0.00013698,2]
[399332761,1766311843066,-500.0,0.00013698,2]
[399332762,1766311843075,-500.0,0.00013698,2]
[399332763,1766311843084,-500.0,0.00013698,2]
[399332764,1766311843094,-500.0,0.00013698,2]
[399332765,1766311843103,-500.0,0.00013698,2]
[399332766,1766311843113,-500.0,0.00013698,2]
[399332767,1766311843123,-330.65900624,0.00013698,2]
[399332768,1766311843132,-1000.0,0.00013699,2]
[399332769,1766311843141,-500.0,0.00013699,2]
[399332770,1766311843151,-500.0,0.00013699,2]
[399332771,1766311843160,-416.68348694,0.00013699,2]
[399332772,1766311843170,-153.53730453,0.00013699,2]
[399332773,1766311843179,-170.3,0.000137,2]
[399332774,1766311843188,-170.3,0.000137,2]
[399332776,1766311843197,-170.3,0.000137,2]
[399332778,1766311843206,-170.3,0.000137,2]
[399332780,1766311843215,-6401.75,0.00013779,2]
[399332782,1766311843225,-6067.0,0.00013791,2]
[399332784,1766311843234,-804.30260779,0.00013797,2]
[399332785,1766311843243,-944.16443793,0.00013821,2]
[399332786,1766311843252,-1000.0,0.00013821,2]
[399332787,1766311843261,-1000.0,0.00013821,2]
[399332788,1766311843271,-1000.0,0.00013821,2]
[399332789,1766311843280,-4825.48,0.00014085,2]
[399332790,1766311843293,-150.0,0.00014095,2]
[399332791,1766311843302,-1480.45,0.00014159,2]
[399332792,1766311843311,-250.0,0.00014232,2]
[399332793,1766311843321,-804.30260779,0.00014314,2]
[399332794,1766311843331,-433.0,0.00014329,2]
[399332795,1766311843340,-1500.0,0.00014368,2]
[399332796,1766311843349,-500.0,0.00014368,2]
[399332797,1766311843359,-1503.97714891,0.00014368,2]
[399332798,1766311843368,-1262.0,0.00014434,2]
[399332799,1766311843378,-2429.0,0.00014442,2]
[399332800,1766311843387,-6529.0,0.00014442,2]
[399332801,1766311843397,-564.0,0.00014442,2]
[399332802,1766311843406,-4803.0,0.00014442,2]
[399332803,1766311843415,-150.0,0.00014523,2]
[399332804,1766311843426,-1000.0,0.00014591,2]
[399332805,1766311843435,-2351.0,0.00014595,2]
[399332806,1766311843444,-212.0,0.00014624,2]
[399332807,1766311843454,-261.0,0.00014624,2]
[399332808,1766311843464,-150.0,0.00014624,2]
[399332809,1766311843474,-150.516,0.00014624,2]
[399332810,1766311843488,-150.0,0.00014624,2]
[399332811,1766311843498,-150.455,0.00014624,2]
[399332812,1766311843508,-150.0,0.00014624,2]
[399332813,1766311843517,-150.375,0.00014624,2]
[399332814,1766311843529,-612.0,0.00014624,2]
[399332815,1766311843539,-3456.0,0.00014624,2]
[399332816,1766311843548,-1609.0,0.00014624,2]
[399332817,1766311843559,-1326.0,0.00014624,2]
[399332818,1766311843569,-518.0,0.00014624,2]
[399332819,1766311843578,-804.30260779,0.00014832,2]
[399332820,1766311843587,-2000.0,0.00014916,2]
[399332821,1766311843597,-225.0,0.00015068,2]
[399332822,1766311843606,-500.0,0.00015215,2]
[399332823,1766311843617,-150.0,0.00015288,2]
[399332824,1766311843627,-1613.51050253,0.00015288,2]
[399332825,1766311843637,-150.0,0.00015348,2]
[399332826,1766311843647,-804.30260779,0.00015349,2]
[399332827,1766311843658,-300.0,0.00015352,2]
[399332828,1766311843668,-151.0,0.00015352,2]
[399332829,1766311843682,-1000.0,0.00015352,2]
[399332830,1766311843692,-1000.0,0.00015352,2]
[399332831,1766311843702,-1000.0,0.00015352,2]
[399332832,1766311843713,-1000.0,0.00015352,2]
[399332833,1766311843723,-500.0,0.00015352,2]
[399332834,1766311843733,-5450.0,0.00015352,2]
[399332835,1766311843743,-578.20924308,0.00015352,2]
[399332836,1766311843752,-500.0,0.00015352,2]
[399332837,1766311843761,-500.0,0.00015352,2]
[399332838,1766311843771,-500.0,0.00015352,2]
[399332839,1766311843781,-250.0,0.00015352,2]
[399332840,1766311843790,-500.0,0.00015352,2]
[399332841,1766311843800,-250.0,0.00015352,2]
[399332842,1766311843810,-200.0,0.00015352,2]
[399332843,1766311843820,-500.0,0.00015352,2]
[399332844,1766311843830,-207.4,0.00015352,2]
[399332845,1766311843840,-250.0,0.00015352,2]
[399332846,1766311843849,-500.0,0.00015352,2]
[399332847,1766311843859,-620.0,0.00015352,2]
[399332848,1766311843872,-1474.8993905,0.00015352,2]
[399332849,1766311843882,-215.0738,0.00015352,2]
[399332850,1766311843892,-271.33050419,0.00015352,2]
[399332851,1766311843902,-500.0,0.00015352,2]
[399332852,1766311843911,-223.0315306,0.00015352,2]
[399332853,1766311843920,-500.0,0.00015352,2]
[399332854,1766311843930,-231.28369723,0.00015352,2]
[399332855,1766311843939,-500.0,0.00015352,2]
[399332856,1766311843948,-239.84119403,0.00015352,2]
[399332857,1766311843957,-510.99352058,0.00015352,2]
[399332858,1766311843967,-248.71531821,0.00015352,2]
[399332859,1766311843976,-257.91778498,0.00015352,2]
[399332860,1766311843986,-267.46074303,0.00015352,2]
[399332861,1766311843995,-553.64373807,0.00015352,2]
[399332862,1766311844004,-151.0,0.00015352,2]
[399332863,1766311844015,-432.37231553,0.00015352,2]
[399332864,1766311844024,-150.0,0.00015409,2]
[399332865,1766311844034,-2196.22588074,0.00015464,2]
[399332866,1766311844044,-150.0,0.0001547,2]
[399332867,1766311844053,-150.0,0.0001553,2]
[399332868,1766311844062,-150.0,0.00015591,2]
[399332869,1766311844071,-670.0,0.0001562,2]
[399332870,1766311844082,-150.0,0.00015652,2]
[399332871,1766311844091,-150.0,0.00015712,2]
[399332872,1766311844100,-150.0,0.00015773,2]
[399332873,1766311844109,-150.0,0.00015834,2]
[399332874,1766311844119,-7996.35155687,0.00015844,2]
[399332875,1766311844128,-804.30260779,0.00015866,2]
[399332876,1766311844137,-150.0,0.00015894,2]
[399332877,1766311844147,-574.12855637,0.000159,2]
[399332878,1766311844156,-150.0,0.00015955,2]
[399332879,1766311844166,-500.0,0.00015973,2]
[399332880,1766311844176,-160.18740865,0.00015973,2]
[399332881,1766311844185,-150.0,0.00016016,2]
[399332882,1766311844195,-3292.0,0.00016054,2]
[399332883,1766311844204,-150.0,0.00016076,2]
[399332884,1766311844213,-213.88979969,0.00016106,2]
[399332885,1766311844223,-150.99,0.00016116,2]
[399332886,1766311844232,-150.99,0.00016116,2]
[399332887,1766311844241,-9999.99,0.00016116,2]
[399332888,1766311844250,-3805.81,0.00016116,2]
[399332889,1766311844259,-299.99,0.00016116,4]
[399332890,1766311844268,-9999.99,0.00016116,2]
[399332891,1766311844278,-9999.99,0.00016116,2]
[399332892,1766311844287,-150.0,0.00016137,2]
[399332893,1766311844295,-150.0,0.00016198,2]
[399332894,1766311844304,-150.0,0.00016258,2]
[399332895,1766311844314,-150.0,0.00016319,2]
[399332896,1766311844323,-7996.35155687,0.00016372,2]
[399332897,1766311844332,-150.0,0.0001638,2]
[399332898,1766311844351,-804.30260779,0.00016383,2]
[399332899,1766311844361,-1000.0,0.00016415,2]
[399332900,1766311844372,-727.99842708,0.00016438,2]
[399332901,1766311844382,-727.99842708,0.00016438,2]
[399332902,1766311844391,-727.99842708,0.00016438,2]
[399332903,1766311844400,-727.99842708,0.00016438,2]
[399332904,1766311844409,-727.99842708,0.00016438,2]
[399332905,1766311844419,-727.99842708,0.00016438,2]
[399332906,1766311844428,-727.99842708,0.00016438,2]
[399332907,1766311844437,-727.99842708,0.00016438,2]
[399332908,1766311844452,-727.99842708,0.00016438,2]
[399332909,1766311844461,-727.99842708,0.00016438,2]
[399332910,1766311844471,-727.99842708,0.00016438,2]
[399332911,1766311844481,-727.99842708,0.00016438,2]
[399332912,1766311844501,-727.99842708,0.00016438,2]
[399332913,1766311844510,-727.99842708,0.00016438,2]
[399332914,1766311844520,-727.99842708,0.00016438,2]
[399332915,1766311844530,-727.99842708,0.00016438,2]
[399332916,1766311844540,-727.99842708,0.00016438,2]
[399332917,1766311844556,-727.99842708,0.00016438,2]
[399332918,1766311844568,-727.99842708,0.00016438,2]
[399332919,1766311844577,-727.99842708,0.00016438,2]
[399332920,1766311844587,-727.99842708,0.00016438,2]
[399332921,1766311844596,-727.99842708,0.00016438,2]
[399332922,1766311844605,-727.99842708,0.00016438,2]
[399332923,1766311844618,-727.99842708,0.00016438,2]
[399332924,1766311844638,-727.99842708,0.00016438,2]
[399332925,1766311844647,-727.99842708,0.00016438,2]
[399332926,1766311844657,-727.99842708,0.00016438,2]
[399332927,1766311844672,-727.99842708,0.00016438,2]
[399332928,1766311844682,-727.99842708,0.00016438,2]
[399332929,1766311844692,-727.99842708,0.00016438,2]
[399332930,1766311844702,-727.99842708,0.00016438,2]
[399332931,1766311844711,-727.99842708,0.00016438,2]
[399332932,1766311844721,-727.99842708,0.00016438,2]
[399332933,1766311844730,-727.99842708,0.00016438,2]
[399332934,1766311844740,-727.99842708,0.00016438,2]
[399332935,1766311844749,-727.99842708,0.00016438,2]
[399332936,1766311844759,-727.99842708,0.00016438,2]
[399332937,1766311844775,-727.99842708,0.00016438,2]
[399332938,1766311844785,-727.99842708,0.00016438,2]
[399332939,1766311844794,-727.99842708,0.00016438,2]
[399332940,1766311844804,-727.99842708,0.00016438,2]
[399332941,1766311844814,-727.99842708,0.00016438,2]
[399332942,1766311844823,-727.99842708,0.00016438,2]
[399332943,1766311844833,-727.99842708,0.00016438,2]
[399332944,1766311844843,-727.99842708,0.00016438,2]
[399332945,1766311844853,-727.99842708,0.00016438,2]
[399332946,1766311844864,-727.99842708,0.00016438,2]
[399332947,1766311844873,-727.99842708,0.00016438,2]
[399332948,1766311844883,-727.99842708,0.00016438,2]
[399332949,1766311844892,-727.99842708,0.00016438,2]
[399332950,1766311844903,-727.99842708,0.00016438,2]
[399332951,1766311844912,-727.99842708,0.00016438,2]
[399332952,1766311844922,-727.99842708,0.00016438,2]
[399332953,1766311844932,-727.99842708,0.00016438,2]
[399332954,1766311844941,-727.99842708,0.00016438,2]
[399332955,1766311844950,-727.99842708,0.00016438,2]
[399332956,1766311844960,-727.99842708,0.00016438,2]
[399332957,1766311844973,-727.99842708,0.00016438,2]
[399332958,1766311844982,-727.99842708,0.00016438,2]
[399332959,1766311844992,-727.99842708,0.00016438,2]
[399332960,1766311845001,-727.99842708,0.00016438,2]
[399332961,1766311845012,-727.99842708,0.00016438,2]
[399332962,1766311845048,-727.99842708,0.00016438,2]
[399332963,1766311845067,-7957.26,0.00016438,2]
[399332964,1766311845083,-225.0,0.00016438,2]
[399332965,1766311845100,-150.0,0.0001644,2]
[399332966,1766311845115,-595.37131296,0.00016448,2]
[399332967,1766311845131,-150.0,0.00016501,2]
[399332968,1766311845148,-426.95628404,0.00016521,2]
[399332969,1766311845164,-150.0,0.00016562,2]
[399332970,1766311845176,-150.0,0.00016622,2]
[399332971,1766311845191,-1917.32905657,0.0001666,2]
[399332972,1766311845207,-150.0,0.00016683,2]
[399332973,1766311845222,-311.1,0.00016721,2]
[399332974,1766311845237,-152.00744986,0.00016721,2]
[399332975,1766311845252,-277.35679052,0.00016721,2]
[399332976,1766311845270,-151.0,0.00016721,2]
[399332977,1766311845286,-150.0,0.00016744,2]
[399332978,1766311845301,-8231.2,0.00016774,2]
[399332979,1766311845317,-150.0,0.00016804,2]
[399332980,1766311845332,-201447.3001998,0.0001683,2]
[399332987,1766311846926,-171.54419902,0.0001367,2]
[399332988,1766311846938,-363.20408163,0.0001683,2]
[399332989,1766311847139,-362.84828034,0.00016438,2]
[399332990,1766311847158,-304.06693998,0.00016438,2]
[399333007,1766311896466,713.495,0.00011821,2]
[399333011,1766311927685,266.976,0.000226,120]
[399333017,1766311973439,755.47400435,0.00011963,2]
[399333025,1766312073638,380.13001279,0.00011963,2]
[399333036,1766312118072,282.5245,0.000226,120]
[399333043,1766312177821,171.0,6.2e-07,2]
[399333054,1766312280392,7028.91764719,0.00011963,2]
[399333078,1766312353461,332.6137612,0.00011963,2]
[399333086,1766312460393,2951.8444,0.00011963,2]
[399333090,1766312483723,1563.02892285,0.00011963,2]
[399333107,1766312496408,570.796,0.00011821,2]
[399333115,1766312579251,538.33663878,0.00022,30]
[399333120,1766312639986,291.03704105,0.00011963,2]
[399333125,1766312669212,6326.02588248,0.00011963,2]
[399333144,1766312859698,64779.70232809,0.00011963,2]
[399333146,1766312866988,-276.18542143,0.00011963,2]
[399333147,1766312871500,-378.77812001,0.00011963,2]
[399333149,1766312874132,-278.1203723,0.00011963,2]
[399333150,1766312879022,-534.03598684,0.00011963,2]
[399333152,1766312885303,-233.58226999,0.00011962,2]
[399333154,1766312887526,-66.41773001,0.00011962,2]
[399333155,1766312887553,-94.91298993,0.00011963,2]
[399333156,1766312889107,-167.68895809,0.00011963,2]
[399333157,1766312891779,-269.4494774,0.00011963,2]
[399333158,1766312893283,-172.1943982,0.00011963,2]
[399333163,1766312927067,-320.06511931,0.00011,2]
[399333188,1766313031980,-95.32941526,0.00011,2]
[399333189,1766313031990,-254.65741091,0.00011863,2]
[399333190,1766313031999,-338.73317383,0.00011863,2]
[399333191,1766313032013,-470.969158,0.00011863,2]
[399333192,1766313032024,-500.0,0.00011863,2]
[399333193,1766313032035,-97.02369878,0.00011863,2]
[399333194,1766313032044,-151.0,0.0001196,2]
[399333195,1766313032054,-300.0,0.00011961,2]
[399333196,1766313032063,-35.60877929,0.00011961,2]
[399333197,1766313032076,-1164.39122071,0.00011961,2]
[399333198,1766313032087,-300.0,0.00011961,2]
[399333199,1766313032096,-300.0,0.00011961,2]
[399333200,1766313032105,-203.38166075,0.00011962,2]
[399333201,1766313032114,-463.47945745,0.00011962,2]
[399333202,1766313032123,-159.47656043,0.00011962,2]
[399333204,1766313032133,-582.56962462,0.00011962,2]
[399333206,1766313032142,-500.0,0.00011962,2]
[399333208,1766313032151,-500.0,0.00011962,2]
[399333210,1766313032160,-500.0,0.00011962,2]
[399333212,1766313032170,-150.0,0.00011962,2]
[399333214,1766313032179,-1531.75768022,0.00011963,2]
[399333216,1766313032191,-630.75339574,0.00011963,2]
[399333218,1766313032201,-321.27772,0.00011963,2]
[399333220,1766313032212,-343.24244796,0.00011963,2]
[399333221,1766313032223,-18864.26098408,0.00011963,2]
[399333224,1766313037827,-911357.63971971,0.00011963,2]
[399333225,1766313037837,-2011.6514,0.00011963,2]
[399333226,1766313037847,-2505.83876066,0.00011963,2]
[399333227,1766313037858,-1000.0,0.00012063,2]
[399333228,1766313037869,-269.4494774,0.000121,2]
[399333229,1766313037878,-1406.72603052,0.00012423,2]
[399333230,1766313037888,-254.65741091,0.00012583,2]
[399333231,1766313037899,-1406.72603052,0.00012982,2]
[399333232,1766313037909,-1143.0,0.00012987,2]
[399333233,1766313037919,-256.0,0.00012987,2]
[399333234,1766313037928,-151.0,0.00012987,2]
[399333235,1766313037938,-60814.35216523,0.0001299,2]
[399333236,1766313037947,-255.0,0.00013038,2]
[399333237,1766313037956,-420.0,0.00013131,2]
[399333238,1766313037966,-242.0,0.00013131,2]
[399333239,1766313037976,-1680.0,0.00013157,2]
[399333240,1766313037985,-500.0,0.00013273,2]
[399333241,1766313037996,-500.0,0.00013273,2]
[399333242,1766313038005,-254.65741091,0.00013302,2]
[399333243,1766313038015,-500.0,0.00013341,2]
[399333244,1766313038025,-1000.0,0.000135,2]
[399333245,1766313038035,-1406.72603052,0.00013542,2]
[399333246,1766313038044,-261.824715,0.00013673,2]
[399333247,1766313038054,-551.04,0.00013698,2]
[399333248,1766313038063,-500.0,0.00013698,2]
[399333249,1766313038073,-500.0,0.00013698,2]
[399333250,1766313038083,-500.0,0.00013698,2]
[399333251,1766313038092,-500.0,0.00013698,2]
[399333252,1766313038101,-298.03,0.00013698,2]
[399333253,1766313038110,-500.0,0.00013698,2]
[399333254,1766313038120,-500.0,0.00013698,2]
[399333255,1766313038129,-500.0,0.00013698,2]
[399333256,1766313038138,-500.0,0.00013698,2]
[399333257,1766313038148,-500.0,0.00013698,2]
[399333258,1766313038158,-500.0,0.00013698,2]
[399333259,1766313038168,-500.0,0.00013698,2]
[399333260,1766313038177,-338.74351494,0.00013698,2]
[399333261,1766313038187,-500.0,0.00013698,2]
[399333262,1766313038196,-548.39145634,0.00013698,2]
[399333263,1766313038205,-500.0,0.00013698,2]
[399333264,1766313038216,-500.0,0.00013698,2]
[399333265,1766313038225,-608.56938757,0.00013698,2]
[399333266,1766313038235,-500.0,0.00013698,2]
[399333267,1766313038244,-500.0,0.00013698,2]
[399333268,1766313038253,-500.0,0.00013698,2]
[399333269,1766313038263,-500.0,0.00013698,2]
[399333270,1766313038272,-1220.77,0.00013698,2]
[399333271,1766313038281,-500.0,0.00013698,2]
[399333272,1766313038290,-500.0,0.00013698,2]
[399333273,1766313038299,-500.0,0.00013698,2]
[399333274,1766313038309,-500.0,0.00013698,2]
[399333275,1766313038318,-500.0,0.00013698,2]
[399333276,1766313038328,-414.818323,0.00013698,2]
[399333277,1766313038337,-500.0,0.00013698,2]
[399333278,1766313038346,-525.2084021,0.00013698,2]
[399333279,1766313038356,-500.0,0.00013698,2]
[399333280,1766313038365,-500.0,0.00013698,2]
[399333281,1766313038374,-500.0,0.00013698,2]
[399333282,1766313038383,-432.90096015,0.00013698,2]
[399333283,1766313038392,-500.0,0.00013698,2]
[399333284,1766313038402,-500.0,0.00013698,2]
[399333285,1766313038411,-500.0,0.00013698,2]
[399333286,1766313038420,-500.0,0.00013698,2]
[399333287,1766313038429,-500.0,0.00013698,2]
[399333288,1766313038441,-500.0,0.00013698,2]
[399333289,1766313038450,-500.0,0.00013698,2]
[399333290,1766313038459,-500.0,0.00013698,2]
[399333291,1766313038469,-500.0,0.00013698,2]
[399333292,1766313038479,-500.0,0.00013698,2]
[399333293,1766313038489,-500.0,0.00013698,2]
[399333294,1766313038498,-166.66,0.00013699,2]
[399333295,1766313038507,-500.84654228,0.00013821,2]
[399333296,1766313038516,-1000.0,0.00013821,2]
[399333297,1766313038526,-166.66,0.00013941,2]
[399333298,1766313038535,-999.0,0.00013956,3]
[399333299,1766313038544,-1220.77,0.00013972,2]
[399333300,1766313038553,-500.0,0.00013972,2]
[399333301,1766313038563,-254.65741091,0.00014022,2]
[399333302,1766313038572,-1406.72603052,0.00014102,2]
[399333303,1766313038582,-166.66,0.00014184,2]
[399333304,1766313038590,-433.0,0.00014211,2]
[399333305,1766313038600,-1220.77,0.00014246,2]
[399333306,1766313038610,-500.0,0.00014246,2]
[399333307,1766313038619,-1500.0,0.00014368,2]
[399333308,1766313038628,-587.0,0.00014415,2]
[399333309,1766313038637,-166.66,0.00014426,2]
[399333310,1766313038646,-554.18,0.00014439,2]
[399333311,1766313038656,-2351.0,0.00014472,2]
[399333312,1766313038665,-185.92,0.00014501,2]
[399333313,1766313038674,-1220.77,0.0001452,2]
[399333314,1766313038683,-235.71154484,0.0001452,2]
[399333315,1766313038693,-1657.71607051,0.00014546,2]
[399333316,1766313038702,-200.0,0.00014629,2]
[399333317,1766313038712,-1406.72603052,0.00014661,2]
[399333318,1766313038722,-166.66,0.00014669,2]
[399333319,1766313038731,-254.65741091,0.00014741,2]
[399333321,1766313038741,-1220.77,0.00014794,2]